Cogmind - Beta 16.1 @@@ ROGUE MODE // 2026.04.15 @ 12:04:00 Player: SovietPaperclip Result: Self-destructed Performance ------------- Evolutions (1) 500 Regions Visited (2) 400 Robots Destroyed (12) 60 Value Destroyed (307) 307 Prototype IDs (0) 0 Alien Tech Used (0) 0 Bonus (0) 0 TOTAL SCORE: 1267 Bonus ------- None Cogmind --------- Core Integrity 356/400 Matter 256/300 Energy 125/125 System Corruption 0% Temperature Cool (0) Movement Treading (160) Location -9/Materials Parts ------- > --- POWER (1) -------- Light Ion Engine > --- PROPULSION (3) --- Light Treads Light Treads > --- UTILITY (3) ------ Small Storage Unit > --- WEAPON (2) ------- Assault Rifle > --- INVENTORY (8) ---- Light Ion Engine Peak State ------------ > --- POWER ------------ Light Ion Engine > --- PROPULSION ------- Light Treads Light Treads > --- UTILITY ---------- Small Storage Unit > --- WEAPON ----------- Assault Rifle Light Assault Rifle > --- INVENTORY -------- (None) [Rating: 6] Favorites ----------- Power Light Ion Engine Engine Light Ion Engine Propulsion Light Treads Treads Light Treads Utility Small Storage Unit Storage Small Storage Unit Weapon Light Assault Rifle Ballistic Gun Light Assault Rifle Build | -11 -10 -9 ------- Run | Yrd Mat Mat Slots Evolved 2 | . . 2 Power . | . . . Propulsion 1 | . . 1 Utility 1 | . . 1 Weapon . | . . . Parts Attached 6 | 6 . . Power 1 | 1 . . Engine 1 | 1 . . Core . | . . . Reactor . | . . . Propulsion 2 | 2 . . Treads 2 | 2 . . Leg . | . . . Wheel . | . . . Hover . | . . . Flight . | . . . Utility 1 | 1 . . Device . | . . . Storage 1 | 1 . . Processor . | . . . Hackware . | . . . Protection . | . . . Artifact . | . . . Weapon 2 | 2 . . Energy Gun . | . . . Energy Cannon . | . . . Ballistic Gun 2 | 2 . . Ballistic Cannon . | . . . Launcher . | . . . Special Weapon . | . . . Impact Weapon . | . . . Slashing Weapon . | . . . Piercing Weapon . | . . . Special Melee Weapon . | . . . Unidentified Prototypes . | . . . Parts Lost 1 | . . 1 Power . | . . . Propulsion . | . . . Utility . | . . . Weapon 1 | . . 1 Highest Loss Streak 1 | . . 1 To Critical Strikes . | . . . Average Backups . | . 1 1 Power . | . 1 1 Propulsion . | . . . Utility . | . . . Weapon . | . . . Tool/Special . | . . . Unused Backups 1 | . . 1 Power 1 | . . 1 Propulsion . | . . . Utility . | . . . Weapon . | . . . Tool/Special . | . . . Average Slot Usage (%) 74 | . 85 66 Engine 12 | . 14 11 Treads 24 | . 28 22 Storage 12 | . 14 11 Ballistic Gun 24 | . 28 22 Peak Build Rating 6 | 6 6 6 Average Rating 5 | 5 6 5 On Entrance 4 | . 6 6 Avg Prop Armor Cover (%) . | . . . Naked Turns . | . . . Heaviest Build 11 | 11 11 11 Greatest Support 40 | 40 40 40 Greatest Overweight (x) 1 | 1 . . Average Overweight (x) . | . . . Largest Inventory Capacity 8 | 8 8 8 Average Capacity 7 | 7 8 8 Most Carried 1 | 1 1 1 Average Carried . | . 1 1 Final Capacity 8 | 8 8 8 Final Carried 1 | 1 1 1 Class Distribution -------------------- 100% | Mutant Dominant Class ---------------- Mutant | -10/Materials Mutant | -9/Materials Resources | -11 -10 -9 ----------- Run | Yrd Mat Mat Matter Collected 443 | 173 171 99 Remotely . | . . . Salvage Created 468 | 151 185 132 Parts 27 | 7 15 5 Haulers Intercepted . | . . . Recyclers Shooed 1 | 1 . . Parts Field Recycled . | . . . Retrieved Matter . | . . . Parts Self-Destructed . | . . . Prevented . | . . . Parts Restored . | . . . Kills | -11 -10 -9 ------- Run | Yrd Mat Mat Combat Hostiles Destroyed 7 | . 4 3 Guns 7 | . 4 3 Classes Destroyed 4 | 2 2 . Tunneler 3 | 3 . . Recycler 1 | 1 . . Watcher 1 | . 1 . Grunt 7 | . 4 3 Best Kill Streak 4 | 4 4 2 Combat Bots Only 4 | . 4 2 Max Kills in Single Turn 1 | 1 1 1 Gunslinging . | . . . Exploded . | . . . Melee . | . . . Uniques/NPCs Destroyed . | . . . Combat | -11 -10 -9 -------- Run | Yrd Mat Mat Hostile Shots Fired 47 | . 20 27 Missed 10 | . 5 5 Hits 37 | . 15 22 Projectile 37 | . 15 22 Critical Strikes 1 | . 1 . Damage Taken 449 | . 181 268 Core 54 | . 10 44 Absorbed by Shields . | . . . Core Remaining (%) 98 | 100 96 . Volleys Fired 58 | 20 18 20 Largest 2 | 2 2 2 Hottest 40 | 40 40 40 Shots Fired 116 | 40 36 40 Gun 116 | 40 36 40 Cannon . | . . . Launcher . | . . . Special . | . . . Kinetic 116 | 40 36 40 Thermal . | . . . Explosive . | . . . Electromagnetic . | . . . Robot Hit Streak 22 | 6 22 8 Robot Miss Streak 4 | 4 2 4 Penetration Max . | . . . Secondary Targets 1 | . 1 . Max Gunslinging Chain 1 | . 1 . Shots Hit Robots 70 | 21 27 22 Core Hits 24 | 6 9 9 Critical Kills . | . . . Critical Parts Destroyed . | . . . Critical Strikes . | . . . Melee Attacks . | . . . Impact . | . . . Slashing . | . . . Piercing . | . . . Sneak Attacks . | . . . Combat Hostiles . | . . . Follow-up Attacks . | . . . Damage Inflicted 751 | 226 283 242 Guns 751 | 226 283 242 Cannons . | . . . Explosions . | . . . Melee . | . . . Ramming . | . . . Kinetic 751 | 226 283 242 Thermal . | . . . Explosive . | . . . Electromagnetic . | . . . Impact . | . . . Slashing . | . . . Piercing . | . . . Highest Corruption . | . . . Average Corruption . | . . . Corruption Purged . | . . . Corruption Blocked . | . . . Overload Shots . | . . . Overflow Damage . | . . . Projectiles . | . . . Explosions . | . . . Melee . | . . . Knockbacks . | . . . Impact . | . . . Kinetic . | . . . Secondary . | . . . Self-Inflicted Damage . | . . . Shots . | . . . Rammed . | . . . Targets Rammed . | . . . Kicked . | . . . Crushed . | . . . Highest Temperature 27 | . 27 9 Average Temperature 8 | . 12 4 Received Heat Transfer 273 | . 123 150 Siege Activations . | . . . Martial Activations . | . . . Shielding Activations . | . . . Robots Disrupted . | . . . Combat Hostiles . | . . . Robots Corrupted . | . . . Combat Hostiles . | . . . Parts Fried . | . . . Impact Corruptions . | . . . Robots Melted . | . . . Combat Hostiles . | . . . Parts Melted . | . . . Heat Transferred . | . . . Parts Sabotaged . | . . . Parts Stolen . | . . . Parts Stripped . | . . . Power Chain Reactions . | . . . Alert | -11 -10 -9 ------- Run | Yrd Mat Mat Maximum Alert Level . | . . . Low Security (%) 100 | 100 100 100 Level 1 . | . . . Level 2 . | . . . Level 3 . | . . . Level 4 . | . . . Level 5 . | . . . High Security . | . . . Max Security . | . . . Peak Influence 80 | 10 80 60 Initial 29 | . 3 29 Average 12 | 1 15 16 Influence Increases 211 | 20 97 94 Destroy 0b10 Robot/C 140 | . 80 60 Destroy 0b10 Robot/NC 25 | 20 5 . Destroy Leader 32 | . 12 20 Successful Hack 14 | . . 14 Influence Decreases 171 | 15 32 124 Entered New Map 43 | . 2 41 Time Decay 118 | 15 30 73 Lost Part 10 | . . 10 Squads Dispatched 4 | . 1 3 Investigation 1 | . . 1 Extermination . | . . . Reinforcement 3 | . 1 2 Assault . | . . . Garrison . | . . . Intercept . | . . . Searches Triggered . | . . . Construction Impeded . | . . . Haulers Reinforced . | . . . Active Scanning Responses . | . . . Cargo Convoy Interrupts . | . . . Stealth | -11 -10 -9 --------- Run | Yrd Mat Mat Distress Signals 2 | . . 2 Communications Jammed . | . . . Distress Signals . | . . . Times Spotted 19 | . 10 9 Peak Tracking Total 4 | . 4 4 Tactical Retreats . | . . . Traps | -11 -10 -9 ------- Run | Yrd Mat Mat Traps Triggered 1 | . . 1 Indirectly . | . . . Trap Hack Attempts . | . . . Triggered . | . . . Disarmed . | . . . Reprogrammed . | . . . Reused . | . . . Traps Extracted . | . . . Installed . | . . . Triggered . | . . . Machines | -11 -10 -9 ---------- Run | Yrd Mat Mat Machines Disabled . | . . . Max in Single Turn . | . . . Machines Repaired . | . . . Machines Dismantled . | . . . Machines Sabotaged . | . . . Overloaded Fab Kills . | . . . Hacking | -11 -10 -9 --------- Run | Yrd Mat Mat Machines Accessed 7 | . 3 4 Terminals 7 | . 3 4 Fabricators . | . . . Repair Stations . | . . . Recycling Units . | . . . Scanalyzers . | . . . Garrison Access . | . . . Total Hacks 13 | . 4 9 Successful 4 | . . 4 Failed 9 | . 4 5 Catastrophic 3 | . 2 1 Database Lockouts . | . . . Manual 4 | . 2 2 Terminals 13 | . 4 9 Fabricators . | . . . Repair Stations . | . . . Recycling Units . | . . . Scanalyzers . | . . . Garrison Access . | . . . Terminal Hacks 3 | . . 3 Locate Traps 1 | . . 1 Registered Components 1 | . . 1 Zone Layout 1 | . . 1 Fabricator Hacks . | . . . Repair Station Hacks . | . . . Recycling Unit Hacks . | . . . Scanalyzer . | . . . Garrison Access Hacks . | . . . Unauthorized Hacks 1 | . . 1 Terminals 1 | . . 1 Botnet 1 | . . 1 Fabricators . | . . . Repair Stations . | . . . Recycling Units . | . . . Scanalyzers . | . . . Garrison Access . | . . . Data Cores Recovered . | . . . Used . | . . . Hacking Detections 7 | . 3 4 Full Trace Events . | . . . Feedback Events . | . . . Feedback Blocked . | . . . Robot Schematics Acquired . | . . . Robots Built . | . . . Authchips . | . . . Time . | . . . Total Robot Build Rating . | . . . Part Schematics Acquired . | . . . Parts Built . | . . . Authchips . | . . . Time . | . . . Total Part Build Rating . | . . . Part Studies Acquired . | . . . Parts Repaired . | . . . Time . | . . . Parts Recycled . | . . . Recycled Matter . | . . . Retrieved Matter . | . . . Retrieved Components . | . . . Parts Scanalyzed . | . . . Part Schematics Acquired . | . . . Parts Damaged . | . . . Bothacking | -11 -10 -9 ------------ Run | Yrd Mat Mat Used RIF Installer . | . . . Robots Hacked . | . . . Non-combat . | . . . Combat . | . . . Robot Hacks Applied . | . . . Relay Couplers Released . | . . . Fabnet Peak Effective % . | . . . Robots Rewired . | . . . Allies Hacked . | . . . Hacks Repelled . | . . . Allies | -11 -10 -9 -------- Run | Yrd Mat Mat Total Allies . | . . . Largest Group . | . . . Highest-Rated Group . | . . . Highest-Rated Ally . | . . . Total Orders . | . . . Ally Attacks . | . . . Total Damage . | . . . Kills . | . . . Allies Corrupted . | . . . Allies Melted . | . . . Intel | -11 -10 -9 ------- Run | Yrd Mat Mat Active Infowar (turns) . | . . . Robot Analysis Total . | . . . Derelict Logs Recovered . | . . . Drone Launches . | . . . Drone Recoveries . | . . . Exploration | -11 -10 -9 ------------- Run | Yrd Mat Mat Turns Passed 577 | 134 192 251 Spaces Moved 244 | 46 84 114 Core 5 | 5 . . Treads 239 | 41 84 114 Legs . | . . . Wheels . | . . . Hover . | . . . Flight . | . . . Fastest Speed 50 | 50 160 160 Average Speed 158 | 151 160 160 Slowest Speed 160 | 160 160 160 Overloaded Moves . | . . . Propulsion Burnouts . | . . . Robots Hopped . | . . . Potential Cave-ins . | . . . Cave-ins Triggered . | . . . Exploration Rate (%) 17 | 4 25 24 Regions Visited 2 Branch Regions . Pre-discovered Areas . | . . . Known Exits Taken . | . . . Unknown Exits Taken 2 | 1 1 . Scrap Searched . | . . . Spaces Dug . | . . . Terrain Destroyed . | . . . Melee . | . . . Projectile . | . . . AOE . | . . . Terrain Rammed . | . . . Walls Destroyed . | . . . Machines Disabled . | . . . Actions | -11 -10 -9 --------- Run | Yrd Mat Mat Total 327 | 72 109 146 Wait 20 | . 8 12 Move 242 | 45 83 114 Hop . | . . . Pick Up 1 | 1 . . Fast Attach 6 | 6 . . Attach . | . . . Detach . | . . . Swap . | . . . Drop . | . . . Fire 58 | 20 18 20 Melee . | . . . Ram . | . . . Kick . | . . . Crush . | . . . Escape Stasis . | . . . Rewire . | . . . Trap . | . . . Miscellaneous . | . . . Route ------- -11/Scrapyard -10/Materials -9/Materials History --------- Turn | Location | Event 60 | -11/Scrapyard | Discovered new exit (range 16) 135 | -11/Scrapyard | Entered Materials 307 | -10/Materials | Build established: Mutant 320 | -10/Materials | Discovered new exit (range 4) 327 | -10/Materials | Entered another Materials area 327 | -9/Materials | Evolved 2 slots: Propulsion x1, Utility x1 578 | -9/Materials | Self-destructed Last Messages --------------- M006. 00490_ O-16 Technician: "IFF HANDSHAKE FAILED. SECURING TERMINAL." 00492_ ALERT: Hostiles spotted, dispatching reinforcements to Terminal M011. 00515_ G-47 Trooper destroyed. 00522_ R-06 Scavenger collects Lgt. Nuclear Core. 00524_ G-34 Mercenary destroyed. 00525_ R-06 Scavenger collects Heat Sink. 00528_ R-06 Scavenger collects Sml. Laser. 00528_ Acquired 99 matter. 00528_ Triggered Alarm Trap. 00528_ An alarm sounds. 00528_ ALERT: Alarm triggered, dispatching investigation squad. 00529_ U-05 Engineer lays Concrete. 00541_ K-01 Serf collects debris. 00546_ W-16 Scout sends out distress signal. 00564_ G-34 Mercenary destroyed. 00564_ U-05 Engineer sends out distress signal. 00576_ R-06 Scavenger collects Heat Sink. 00577_ Lgt. Assault Rifle destroyed. Map ----- +----------------------------------------------------+ | +######## ## # """#????????????????????? | | ## + #????????????????????? | | T ## # ! """#????????????????????? | | #### # """#????????????????????? | | ####### #??# #? """#????????????????????? | | #?????#######??# #? #????????????????????? | | #????????#######+##########????????????????????? | | ##???????# #???????????????????????? | | #???????# """ """ #???????????????????????? | | #???????# """ """ #???????????????????????? | | T #???????# """ """ #???????????????????????? | | #???????# "Y" #???????????????????????? | | #???????# """ [ #???????????????????????? | | ####???????#######/#######???????????????????????? | | ????????######### #???????????????????????????? | | ????????# # #???????????????????????????? | | ????????# """ # #???????????????????????????? | | ????????# """ + #???????????????????????????? | | ????????# """ # #???????????????????????????? | | ????????# # #???????????????????????????? | | ????????######### #??#+#??????????????????????? | | ????????# """ # #??# #??????????????????????? | | ????????# """ # r#### #??????????????????????? | | ????????# """ + #??????????????????????? | | ????????# # ##?????????????????????? | | ????????#] # [^ t @"#?????????????????????? | | ????????# ?### [^[ T#?????????????????????? | | ????????######???# [^[[ "#?????????????????????? | | ?????????????????# ^ r=##?????????????????????? | | ?????????????????# rggg#??????????????????????? | | ?????????????????# r#??????????????????????? | | ???????????????? u ??????????????????????? | | ??????????????? ?????????????????????? | | ?????????????! ????????????????????? | | ?????????????! ####"T"#######???????????????????? | | ?????????????#! ???#####?????????????????????????? | | ?????????????????????????????????????????????????? | | ?????????????????????????????????????????????????? | | ?????????????????????????????????????????????????? | | ?????????????????????????????????????????????????? | | ?????????????????????????????????????????????????? | | ?????????????????????????????????????????????????? | | ?????????????????????????????????????????????????? | | | | | | | | | | | | | | | +----------------------------------------------------+ Best States ------------- Heat Dissipation 28 Energy Generation 10 Energy Capacity 125 Matter Stores 291 Matter Capacity 300 Sight Range 16 Terrain Scan Density 10 Evasion (%) 40 Recoil Reduction 2 Item Schematics ----------------- None Robot Schematics ------------------ None Fabricated ------------ Nothing Repaired ---------- Nothing Studied --------- None Alien Tech Used ----------------- None Achievements -------------- None Challenges ------------ None Game ------ Seed BiomechanicalTeslaMace Manual? 0 Play Time 00:06:13 Cumulative 162.7 hours Start 2026.04.15 @ 11:59:46 End 2026.04.15 @ 12:04:00 Sessions 1 Manual Loads 0 Difficulty Rogue Special Mode None Game No. 251 Rogue 251 Adventurer 0 Explorer 0 Win Type - Total 1 Types 1/0/0/0/0/0/0/0/0/0 Lore% 57 Gallery% 51 Achievement% 33 Wizard Run 0 Options --------- Layout 1 ASCII 0 Keyboard 0 Movement Numpad Keybinds 0 Fullscreen 2 Font 32/SmallcapsGlow Map View 77x35 Zoom Use 0% Tactical HUD 1 Map Filters NONE Filters NONE Steam 1 RUN: 04eadf10-799c-4a34-a5a0-a9dd17e0a14a